Cogmind - Beta 10.1 @@@ ROGUE MODE // 2021.01.08 @ 15:05:29 Player: Atherys Result: Self-destructed Performance ------------- Evolutions (1) 500 Regions Visited (2) 400 Robots Destroyed (11) 55 Value Destroyed (312) 312 Prototype IDs (0) 0 Alien Tech Used (0) 0 Bonus (0) 0 TOTAL SCORE: 1267 Bonus ------- None Cogmind --------- Core Integrity 226/400 Matter 300/300 Energy 400/400 System Corruption 0% Temperature Cool (0) Movement Core (50) Location -9/Materials Parts ------- > --- POWER (2) -------- (None) > --- PROPULSION (2) --- (None) > --- UTILITY (2) ------ Large Battery > --- WEAPON (3) ------- (None) > --- INVENTORY (4) ---- (None) Peak State ------------ > --- POWER ------------ Light Nuclear Core > --- PROPULSION ------- Aluminum Leg Compact Wheel > --- UTILITY ---------- ECM Suite > --- WEAPON ----------- Beam Cannon Light Assault Rifle > --- INVENTORY -------- Ion Engine Datajack [Rating: 8] Favorites ----------- Power Ion Engine Engine Ion Engine Power Core Light Nuclear Core Propulsion Aluminum Leg Leg Aluminum Leg Wheel Compact Wheel Utility ECM Suite Device ECM Suite Storage Large Battery Weapon Light Assault Rifle Energy Gun Medium Laser Energy Cannon Beam Cannon Ballistic Gun Light Assault Rifle Special Melee Weapon Datajack Build | -11 -10 -9 ------- Run | Scr Mat Mat Slots Evolved 2 | . . 2 Power 1 | . . 1 Propulsion . | . . . Utility . | . . . Weapon 1 | . . 1 Parts Attached 21 | 5 6 10 Power 5 | 1 2 2 Engine 4 | 1 1 2 Core 1 | . 1 . Reactor . | . . . Propulsion 4 | 2 . 2 Treads . | . . . Leg 3 | 1 . 2 Wheel 1 | 1 . . Hover . | . . . Flight . | . . . Utility 2 | . 1 1 Device 1 | . 1 . Storage 1 | . . 1 Processor . | . . . Hackware . | . . . Protection . | . . . Artifact . | . . . Weapon 10 | 2 3 5 Energy Gun 2 | 1 . 1 Energy Cannon 2 | . 1 1 Ballistic Gun 5 | 1 1 3 Ballistic Cannon . | . . . Launcher . | . . . Special Weapon . | . . . Impact Weapon . | . . . Slashing Weapon . | . . . Piercing Weapon . | . . . Special Melee Weapon 1 | . 1 . Unidentified Prototypes . | . . . Parts Lost 11 | . 2 9 Power 3 | . 1 2 Propulsion 1 | . . 1 Utility 1 | . . 1 Weapon 6 | . 1 5 Highest Loss Streak 6 | . 1 6 Average Slot Usage (%) 65 | . 77 49 Engine 9 | . 10 9 Core 2 | . 3 . Leg 10 | . 14 5 Wheel 5 | . 8 . Device 8 | . 11 3 Storage 2 | . . 7 Energy Gun 3 | . 5 1 Energy Cannon 8 | . 11 3 Ballistic Gun 8 | . 8 8 Special Melee Weapon 5 | . 2 9 Naked Turns . | . . . Heaviest Build 16 | 8 11 16 Greatest Support 16 | 16 16 10 Greatest Overweight (x) 3 | . 3 3 Average Overweight (x) . | . . . Largest Inventory Capacity 4 | 4 4 4 Average Capacity 4 | 4 4 4 Most Carried 4 | 3 3 4 Average Carried . | . 1 . Final Capacity 4 | 4 4 4 Final Carried 2 | . 2 . Class Distribution -------------------- 100% | Mutant Dominant Class ---------------- Mutant | -10/Materials Mutant | -9/Materials Resources | -11 -10 -9 ----------- Run | Scr Mat Mat Matter Collected 431 | 228 82 121 Remotely . | . . . Salvage Created 363 | . 180 183 Parts 21 | . 6 15 Haulers Intercepted . | . . . Recyclers Shooed . | . . . Parts Field Recycled . | . . . Retrieved Matter . | . . . Parts Self-Destructed . | . . . Prevented . | . . . Kills | -11 -10 -9 ------- Run | Scr Mat Mat Combat Hostiles Destroyed 11 | . 4 7 Guns 7 | . . 7 Cannons 4 | . 4 . Classes Destroyed 3 | . 1 2 Swarmer 4 | . . 4 Grunt 6 | . 4 2 Sentry 1 | . . 1 Best Kill Streak 5 | . 2 5 Combat Bots Only 5 | . 2 5 Max Kills in Single Turn 1 | . 1 1 Gunslinging . | . . . Exploded . | . . . Melee . | . . . Uniques/NPCs Destroyed . | . . . Combat | -11 -10 -9 -------- Run | Scr Mat Mat Damage Taken 842 | . 266 576 Core 217 | . 43 174 Absorbed by Shields . | . . . Core Remaining (%) 91 | 100 82 . Volleys Fired 55 | . 19 36 Largest 2 | . 2 2 Hottest 110 | . 110 80 Shots Fired 80 | . 33 47 Gun 53 | . 14 39 Cannon 27 | . 19 8 Launcher . | . . . Special . | . . . Kinetic 46 | . 10 36 Thermal 34 | . 23 11 Explosive . | . . . Electromagnetic . | . . . Robot Hit Streak 9 | . 7 9 Robot Miss Streak 5 | . 5 2 Penetration Max . | . . . Secondary Targets . | . . . Shots Hit Robots 50 | . 19 31 Core Hits 19 | . 6 13 Critical Hits 1 | . 1 . Critical Kills . | . . . Critical Parts Destroyed 1 | . 1 . Melee Attacks 3 | . 3 . Impact . | . . . Slashing . | . . . Piercing . | . . . Sneak Attacks . | . . . Combat Hostiles . | . . . Follow-up Attacks . | . . . Damage Inflicted 546 | . 260 286 Guns 233 | . 52 181 Cannons 313 | . 208 105 Explosions . | . . . Melee . | . . . Ramming . | . . . Kinetic 209 | . 40 169 Thermal 337 | . 220 117 Explosive . | . . . Electromagnetic . | . . . Impact . | . . . Slashing . | . . . Piercing . | . . . Highest Corruption . | . . . Average Corruption . | . . . Corruption Purged . | . . . Overload Shots . | . . . Overflow Damage . | . . . Projectiles . | . . . Explosions . | . . . Melee . | . . . Knockbacks . | . . . Impact . | . . . Kinetic . | . . . Secondary . | . . . Self-Inflicted Damage . | . . . Shots . | . . . Rammed . | . . . Targets Rammed . | . . . Kicked . | . . . Crushed . | . . . Highest Temperature 394 | . 394 101 Average Temperature 121 | . 167 34 Received Heat Transfer 234 | . 150 84 Effects 2 | . 2 . Shutdowns 1 | . 1 . Energy Bleed 1 | . 1 . Siege Activations . | . . . Robots Corrupted . | . . . Combat Hostiles . | . . . Parts Fried . | . . . Impact Corruptions . | . . . Robots Melted . | . . . Combat Hostiles . | . . . Parts Melted 2 | . . 2 Heat Transferred 728 | . 481 247 Parts Sabotaged . | . . . Parts Stolen . | . . . Parts Stripped . | . . . Power Chain Reactions . | . . . Missiles Intercepted . | . . . Alert | -11 -10 -9 ------- Run | Scr Mat Mat Peak Influence 220 | . 120 220 Initial 50 | . . 50 Average 77 | . 49 135 Maximum Alert Level 1 | . . 1 Low Security (%) 94 | 100 100 85 Level 1 5 | . . 14 Level 2 . | . . . Level 3 . | . . . Level 4 . | . . . Level 5 . | . . . High Security . | . . . Max Security . | . . . Squads Dispatched 4 | . 2 2 Investigation 1 | . 1 . Extermination . | . . . Reinforcement 3 | . 1 2 Assault . | . . . Garrison . | . . . Intercept . | . . . Construction Impeded . | . . . Haulers Reinforced . | . . . Stealth | -11 -10 -9 --------- Run | Scr Mat Mat Distress Signals . | . . . Communications Jammed . | . . . Distress Signals . | . . . Times Spotted 17 | . 5 12 Peak Tracking Total 5 | . 2 5 Tactical Retreats . | . . . Traps | -11 -10 -9 ------- Run | Scr Mat Mat Traps Triggered 2 | . . 2 Indirectly . | . . . Trap Hack Attempts . | . . . Triggered . | . . . Disarmed . | . . . Reprogrammed . | . . . Reused . | . . . Traps Extracted . | . . . Installed . | . . . Triggered . | . . . Machines | -11 -10 -9 ---------- Run | Scr Mat Mat Machines Disabled 1 | . 1 . Max in Single Turn 1 | . 1 . Machines Sabotaged . | . . . Garrisons Compromised . | . . . Overloaded Fab Kills . | . . . Fab Network Shutdowns . | . . . Hacking | -11 -10 -9 --------- Run | Scr Mat Mat Machines Accessed 3 | . 3 . Terminals 1 | . 1 . Fabricators . | . . . Repair Stations 1 | . 1 . Recycling Units 1 | . 1 . Scanalyzers . | . . . Garrison Access . | . . . Total Hacks 6 | . 6 . Successful 3 | . 3 . Failed 3 | . 3 . Catastrophic . | . . . Database Lockouts . | . . . Manual . | . . . Terminals 1 | . 1 . Fabricators . | . . . Repair Stations 3 | . 3 . Recycling Units 2 | . 2 . Scanalyzers . | . . . Garrison Access . | . . . Terminal Hacks . | . . . Fabricator Hacks . | . . . Repair Station Hacks 2 | . 2 . Scan Component 1 | . 1 . Repair 1 | . 1 . Recycling Unit Hacks 1 | . 1 . Process 1 | . 1 . Scanalyzer . | . . . Garrison Access Hacks . | . . . Unauthorized Hacks . | . . . Terminals . | . . . Fabricators . | . . . Repair Stations . | . . . Recycling Units . | . . . Scanalyzers . | . . . Garrison Access . | . . . Data Cores Recovered . | . . . Used . | . . . Hacking Detections 1 | . 1 . Full Trace Events 1 | . 1 . Feedback Events . | . . . Feedback Blocked . | . . . Robot Schematics Acquired . | . . . Robots Built . | . . . Matter . | . . . Time . | . . . Total Robot Build Rating . | . . . Part Schematics Acquired . | . . . Parts Built . | . . . Matter . | . . . Time . | . . . Total Part Build Rating . | . . . Parts Repaired 1 | . 1 . Time 26 | . 26 . Parts Recycled . | . . . Recycled Matter 6 | . 6 . Retrieved Matter . | . . . Retrieved Components . | . . . Parts Scanalyzed . | . . . Part Schematics Acquired . | . . . Parts Damaged . | . . . Bothacking | -11 -10 -9 ------------ Run | Scr Mat Mat Used RIF Installer . | . . . Robots Hacked 1 | . 1 . Non-combat . | . . . Combat 1 | . 1 . Robot Hacks Applied 2 | . 2 . parse_system 2 | . 2 . Relay Couplers Released . | . . . Robots Rewired . | . . . Allies Hacked . | . . . Hacks Repelled . | . . . Allies | -11 -10 -9 -------- Run | Scr Mat Mat Total Allies . | . . . Largest Group . | . . . Highest-Rated Group . | . . . Highest-Rated Ally . | . . . Total Orders . | . . . Ally Attacks . | . . . Total Damage . | . . . Kills . | . . . Allies Corrupted . | . . . Allies Melted . | . . . Intel | -11 -10 -9 ------- Run | Scr Mat Mat Robot Analysis Total . | . . . Derelict Logs Recovered . | . . . Drone Launches . | . . . Drone Recoveries . | . . . Exploration | -11 -10 -9 ------------- Run | Scr Mat Mat Turns Passed 462 | 40 252 170 Spaces Moved 263 | 38 161 64 Core 56 | 14 17 25 Treads . | . . . Legs 68 | . 29 39 Wheels 139 | 24 115 . Hover . | . . . Flight . | . . . Fastest Speed 50 | 50 100 50 Average Speed 110 | 81 114 118 Slowest Speed 200 | 100 200 200 Overloaded Moves . | . . . Propulsion Burnouts . | . . . Robots Hopped . | . . . Cave-ins Triggered . | . . . Exploration Rate (%) 13 | 3 32 6 Regions Visited 2 Branch Regions . Pre-discovered Areas . | . . . Known Exits Taken . | . . . Unknown Exits Taken 2 | 1 1 . Scrap Searched . | . . . Spaces Dug . | . . . Terrain Destroyed . | . . . Melee . | . . . Projectile . | . . . AOE . | . . . Terrain Rammed . | . . . Walls Destroyed . | . . . Machines Disabled . | . . . Actions | -11 -10 -9 --------- Run | Scr Mat Mat Total 358 | 47 193 118 Wait . | . . . Move 261 | 37 160 64 Hop . | . . . Pick Up 18 | 5 5 8 Fast Attach . | . . . Attach 18 | 5 3 10 Detach . | . . . Swap 3 | . 3 . Drop . | . . . Fire 55 | . 19 36 Melee 3 | . 3 . Ram . | . . . Kick . | . . . Crush . | . . . Escape Stasis . | . . . Rewire . | . . . Trap . | . . . Miscellaneous . | . . . Route ------- -11/Scrapyard -10/Materials -9/Materials History --------- Turn | Location | Event 2 | -11/Scrapyard | Met Revision 17 9 | -11/Scrapyard | Discovered new exit (range 16) 41 | -11/Scrapyard | Entered Materials 223 | -10/Materials | Repaired Com. Wheel? 276 | -10/Materials | Discovered new exit (range 10) 293 | -10/Materials | Entered another Materials area 293 | -9/Materials | Evolved 2 slots: Power x1, Weapon x1 328 | -9/Materials | Build established: Mutant 418 | -9/Materials | Lost 3 parts (1u2w) 463 | -9/Materials | Self-destructed Last Messages --------------- 00395_ R-06 Scavenger collects Flight Unit. 00395_ G-34 Mercenary destroyed. 00398_ R-06 Scavenger collects Flight Unit. 00404_ R-06 Scavenger collects Aluminum Leg. 00417_ G-34 Mercenary destroyed. 00419_ Acquired Sml. Laser. 00421_ Acquired 30 matter. 00427_ Acquired Aluminum Leg. 00430_ Acquired Ion Engine. 00434_ Acquired 41 matter. 00435_ Ion Engine destroyed. 00436_ Acquired 1 matter. 00442_ Lgt. Assault Rifle destroyed. 00442_ Sml. Laser destroyed. 00444_ Datajack destroyed. 00447_ U-05 Engineer lays Concrete. 00449_ ALERT: Hostiles spotted, dispatching reinforcements to Terminal M004. 00453_ Ion Engine destroyed. 00457_ Aluminum Leg destroyed. Map ----- +----------------------------------------------------+ | ?????????????????????????????????????? | | ?????????????????????????????????????? | | ?????????????????????????????????????? | | ?????????????????????????????????????? | | ?????????????????????????????????????? | | ????????????????????????#####????????? | | ????????????????????????# #????????? | | ?????????????????###+???# #????????? | | ??????????????# ? ?? # #????????? | | ????????????### """ ?? # +????????? | | ????????????? + """ "" # #????????? | | ??????#???????# """ "" # #????????? | | ??????# ??????# T" # #????????? | | ??????# ?????? "" # #????????? | | ??????# ??????? "" # #????????? | | ?????## #???????? # #????????? | | ?????# ##########+### #????????? | | ?????# #????????? | | ?????# % #????????? | | % #????????? | | ???### ###+###########s#####?????? | | ?????## ??# ! #???# #?????? | | ???????????#""" #???# """ #?????? | | ???????????#"R= = #???# """ #?????? | | ???????????#"""^^ #???# """ #?????? | | ???????????#^ #???# @ #?????? | | ???????????# #???# """ #?????? | | ???????????########???# """ #?????? | | ??????????????????????# """ #?????? | | ??????????????????????# #?????? | | ??????????????????????##########?????? | | ?????????????????????????????????????? | | ?????????????????????????????????????? | | ?????????????????????????????????????? | | ?????????????????????????????????????? | | ?????????????????????????????????????? | | ?????????????????????????????????????? | | ?????????????????????????????????????? | | ?????????????????????????????????????? | | ?????????????????????????????????????? | | ?????????????????????????????????????? | | ?????????????????????????????????????? | | ?????????????????????????????????????? | | ?????????????????????????????????????? | | ?????????????????????????????????????? | | ?????????????????????????????????????? | | ?????????????????????????????????????? | | ?????????????????????????????????????? | | ?????????????????????????????????????? | | ?????????????????????????????????????? | +----------------------------------------------------+ Best States ------------- Heat Dissipation 28 Energy Generation 14 Energy Capacity 550 Matter Stores 300 Matter Capacity 300 Sight Range 16 Terrain Scan Density 10 ECM Strength 1 Evasion (%) 50 Item Schematics ----------------- None Robot Schematics ------------------ None Fabricated ------------ Nothing Alien Tech Used ----------------- None Achievements -------------- None Challenges ------------ None Game ------ Seed ProtonBackupBiocell Manual? 0 Play Time 00:14:50 Cumulative 12.1 hours Start 2021.01.08 @ 14:49:20 End 2021.01.08 @ 15:05:29 Sessions 1 Manual Loads 0 Difficulty Rogue Special Mode None Game No. 15 Rogue 15 Adventurer 0 Explorer 0 Win Type - Total 0 Types 0/0/0/0/0/0/0/0/0 Lore% 19 Gallery% 18 Achievement% 16 Wizard Run 0 Options --------- ASCII 0 Keyboard 0 Movement Mouse Keybinds 0 Fullscreen 1 Font 16/SmallcapsGlow Map View 75x55 Tactical HUD 1 Map Filters NONE Filters NONE Steam X RUN: 2409dbd4-af02-4369-90e2-75fdc2de9c5c